fUST/lending_fUST_20250910
["ID","MTS","AMOUNT","RATE_DAILY","PERIOD"]
[384653449,1757502640692,-480.0,0.00013698,2]
[384653450,1757502640701,-480.0,0.00013698,2]
[384653451,1757502640711,-480.0,0.00013698,2]
[384653452,1757502640720,-480.0,0.00013698,2]
[384653453,1757502640729,-480.0,0.00013698,2]
[384653454,1757502640739,-571.66,0.00013698,2]
[384653455,1757502640748,-300.0,0.00013971,2]
[384653456,1757502640757,-300.0,0.00013971,2]
[384653457,1757502640766,-300.0,0.00013971,2]
[384653458,1757502640776,-300.0,0.00013971,2]
[384653459,1757502640785,-300.0,0.00013971,2]
[384653460,1757502640795,-300.0,0.00013971,2]
[384653461,1757502640804,-300.0,0.00013971,2]
[384653462,1757502640813,-300.0,0.00013971,2]
[384653463,1757502640823,-300.0,0.00013971,2]
[384653464,1757502640832,-300.0,0.00013971,2]
[384653465,1757502640841,-300.0,0.00013971,2]
[384653466,1757502640850,-300.0,0.00013971,2]
[384653467,1757502640859,-300.0,0.00013971,2]
[384653468,1757502640869,-300.0,0.00013971,2]
[384653469,1757502640878,-300.0,0.00013971,2]
[384653470,1757502640887,-600.0,0.00013971,2]
[384653471,1757502640896,-540.73,0.00013971,2]
[384653472,1757502640906,-693.58,0.00013971,2]
[384653473,1757502640916,-480.0,0.00013971,2]
[384653474,1757502640925,-480.0,0.00013971,2]
[384653475,1757502640935,-480.0,0.00013971,2]
[384653476,1757502640943,-480.0,0.00013971,2]
[384653477,1757502640953,-480.0,0.00013971,2]
[384653478,1757502640962,-480.0,0.00013971,2]
[384653479,1757502640972,-500.0,0.00013971,2]
[384653480,1757502640981,-500.0,0.00013971,2]
[384653481,1757502640990,-480.0,0.00013971,2]
[384653482,1757502641000,-480.0,0.00013971,2]
[384653483,1757502641009,-480.0,0.00013971,2]
[384653484,1757502641018,-480.0,0.00013971,2]
[384653485,1757502641027,-480.0,0.00013971,2]
[384653486,1757502641038,-187.11491595,0.00013972,2]
[384653487,1757502641051,-266.9869136,0.00013972,2]
[384653488,1757502641062,-25.89817045,0.00013972,2]
[384653489,1757502641072,-265.40198455,0.00013972,2]
[384653490,1757502641083,-214.59801545,0.00013972,2]
[384653491,1757502641093,-480.0,0.00013972,2]
[384653492,1757502641103,-209.82088188,0.00013972,2]
[384653493,1757502641112,-480.0,0.00013972,2]
[384653494,1757502641123,-480.0,0.00013972,2]
[384653495,1757502641132,-480.0,0.00013972,2]
[384653496,1757502641141,-480.0,0.00013972,2]
[384653497,1757502641151,-480.0,0.00013972,2]
[384653498,1757502641160,-480.0,0.00013972,2]
[384653499,1757502641170,-480.0,0.00013972,2]
[384653500,1757502641179,-511.74790592,0.00013972,2]
[384653501,1757502641189,-480.0,0.00013972,2]
[384653502,1757502641198,-529.58106825,0.00013972,2]
[384653503,1757502641209,-265.69585767,0.00013972,2]
[384653504,1757502641219,-338.70143518,0.00013972,2]
[384653505,1757502641231,-141.29856482,0.00013972,2]
[384653506,1757502641241,-4185.49,0.00013972,2]
[384653507,1757502641250,-595.44,0.00013972,2]
[384653508,1757502641261,-480.0,0.00013972,2]
[384653509,1757502641270,-489.54,0.00013972,2]
[384653510,1757502641279,-480.0,0.00013972,2]
[384653511,1757502641289,-1131.9,0.00013972,2]
[384653512,1757502641299,-394.03684454,0.00013972,2]
[384653513,1757502641309,-480.0,0.00013972,2]
[384653514,1757502641319,-480.0,0.00013972,2]
[384653515,1757502641329,-522.92,0.00013972,2]
[384653516,1757502641338,-210.89157672,0.00013972,2]
[384653517,1757502641630,205.0,0.00027397,120]
[384653518,1757502641839,-500.0,0.00013697,2]
[384653519,1757502641848,-385.37805718,0.00013697,2]
[384653520,1757502641858,-500.0,0.00013697,2]
[384653521,1757502641868,-500.0,0.00013697,2]
[384653522,1757502641877,-262.84143658,0.00013697,2]
[384653523,1757502641887,-500.0,0.00013697,2]
[384653524,1757502641896,-500.0,0.00013697,2]
[384653525,1757502641905,-500.0,0.00013697,2]
[384653526,1757502641915,-630.97554217,0.00013697,2]
[384653527,1757502641925,-377.69915331,0.00013697,2]
[384653528,1757502641935,-480.0,0.00013698,2]
[384653529,1757502641945,-480.0,0.00013698,2]
[384653530,1757502641956,-480.0,0.00013698,2]
[384653531,1757502641965,-481.58508892,0.00013698,2]
[384653532,1757502641975,-269.10842328,0.00013972,2]
[384653533,1757502641984,-480.4,0.00013972,2]
[384653534,1757502641993,-2389.25,0.00013972,2]
[384653535,1757502642004,-530.89,0.00013972,2]
[384653536,1757502642013,-480.0,0.00013972,2]
[384653537,1757502642023,-480.0,0.00013972,2]
[384653538,1757502642033,-482.57595851,0.00013972,2]
[384653539,1757502642043,-480.0,0.00013972,2]
[384653540,1757502642053,-483.31803824,0.00013972,2]
[384653541,1757502642062,-480.0,0.00013972,2]
[384653542,1757502642074,-480.0,0.00013972,2]
[384653543,1757502642084,-480.0,0.00013972,2]
[384653544,1757502642093,-480.0,0.00013972,2]
[384653545,1757502642102,-480.0,0.00013972,2]
[384653546,1757502642112,-603.62,0.00013972,2]
[384653547,1757502642121,-312.00534998,0.00013972,2]
[384653548,1757502642131,-480.0,0.00013972,2]
[384653549,1757502642140,-480.0,0.00013972,2]
[384653550,1757502642149,-556.34,0.00013972,2]
[384653551,1757502642160,-880.83,0.00013972,2]
[384653552,1757502642170,-435.11001231,0.00013972,2]
[384653553,1757502642179,-480.0,0.00013972,2]
[384653554,1757502642189,-480.0,0.00013972,2]
[384653555,1757502642198,-480.0,0.00013972,2]
[384653556,1757502642207,-480.0,0.00013972,2]
[384653557,1757502642217,-571.66,0.00013972,2]
[384653558,1757502642226,-166.56990996,0.00014146,2]
[384653559,1757502642238,-540.73,0.00014245,2]
[384653560,1757502642247,-693.58,0.00014245,2]
[384653561,1757502642257,-480.0,0.00014245,2]
[384653562,1757502642266,-270.05,0.00014245,2]
[384653563,1757502642275,-480.0,0.00014245,2]
[384653564,1757502642285,-480.0,0.00014245,2]
[384653565,1757502642294,-455.29730526,0.00014245,2]
[384653566,1757502642303,-480.0,0.00014245,2]
[384653567,1757502642312,-500.0,0.00014245,2]
[384653568,1757502642321,-480.0,0.00014245,2]
[384653569,1757502642330,-480.0,0.00014245,2]
[384653570,1757502642340,-480.0,0.00014246,2]
[384653571,1757502642349,-480.0,0.00014246,2]
[384653572,1757502642358,-480.0,0.00014246,2]
[384653573,1757502642371,-480.0,0.00014246,2]
[384653574,1757502642380,-554.07751191,0.00014246,2]
[384653575,1757502642390,-480.0,0.00014246,2]
[384653576,1757502642399,-480.0,0.00014246,2]
[384653577,1757502642410,-487.53045418,0.00014246,2]
[384653578,1757502642419,-480.0,0.00014246,2]
[384653579,1757502642428,-155.61138132,0.00014246,2]
[384653580,1757502642437,-595.44,0.00014246,2]
[384653581,1757502642448,-480.0,0.00014246,2]
[384653582,1757502642458,-489.54,0.00014246,2]
[384653583,1757502642467,-1131.9,0.00014246,2]
[384653584,1757502642477,-522.92,0.00014246,2]
[384653585,1757502642487,-480.0,0.00014246,2]
[384653586,1757502642497,-2389.25,0.00014246,2]
[384653587,1757502642506,-530.89,0.00014246,2]
[384653588,1757502642516,-480.0,0.00014246,2]
[384653589,1757502642525,-480.0,0.00014246,2]
[384653590,1757502642535,-480.0,0.00014246,2]
[384653591,1757502642544,-480.0,0.00014246,2]
[384653592,1757502642553,-603.62,0.00014246,2]
[384653593,1757502642568,-480.0,0.00014246,2]
[384653594,1757502642581,-556.34,0.00014246,2]
[384653595,1757502642594,-1021.81280291,0.00014246,2]
[384653596,1757502642607,-880.83,0.00014246,2]
[384653597,1757502642619,-480.0,0.00014246,2]
[384653598,1757502642630,-293.90385868,0.00014246,2]
[384653599,1757502642643,-236.19733502,0.00014246,2]
[384653600,1757502642656,-571.66,0.00014246,2]
[384653601,1757502642668,-500.0,0.00014424,2]
[384653602,1757502642680,-156.44179697,0.00014424,2]
[384653603,1757502642693,-471.16468916,0.00014424,2]
[384653604,1757502642705,-168.46552403,0.00014424,2]
[384653605,1757502642716,-500.0,0.00014424,2]
[384653606,1757502642728,-482.30867304,0.00014424,2]
[384653607,1757502642741,-500.38140165,0.00014424,2]
[384653608,1757502642754,-500.0,0.00014424,2]
[384653609,1757502642766,-500.0,0.00014424,2]
[384653610,1757502642777,-500.0,0.00014424,2]
[384653611,1757502642788,-263.94520981,0.00014424,2]
[384653612,1757502642800,-500.46731704,0.00014424,2]
[384653613,1757502642811,-500.0,0.00014424,2]
[384653614,1757502642822,-500.0,0.00014424,2]
[384653615,1757502642834,-500.0,0.00014424,2]
[384653616,1757502642847,-500.0,0.0001447,2]
[384653617,1757502642858,-500.0,0.0001447,2]
[384653618,1757502642871,-500.0,0.0001447,2]
[384653619,1757502642882,-501.85826548,0.0001447,2]
[384653620,1757502642893,-500.0,0.0001447,2]
[384653621,1757502642903,-500.0,0.0001447,2]
[384653622,1757502642916,-500.0,0.0001447,2]
[384653624,1757502642926,-503.08097958,0.0001447,2]
[384653625,1757502642938,-500.0,0.0001447,2]
[384653626,1757502642950,-500.0,0.0001447,2]
[384653627,1757502642961,-500.0,0.0001447,2]
[384653628,1757502642974,-500.0,0.0001447,2]
[384653629,1757502642986,-500.0,0.0001447,2]
[384653630,1757502642999,-500.0,0.00014511,2]
[384653631,1757502643013,-540.73,0.00014519,2]
[384653632,1757502643026,-693.58,0.00014519,2]
[384653633,1757502643038,-480.0,0.00014519,2]
[384653634,1757502643052,-480.0,0.00014519,2]
[384653635,1757502643062,-480.0,0.00014519,2]
[384653636,1757502643074,-480.0,0.00014519,2]
[384653637,1757502643084,-500.0,0.00014519,2]
[384653638,1757502643095,-480.0,0.00014519,2]
[384653639,1757502643107,-480.0,0.00014519,2]
[384653640,1757502643119,-271.34845384,0.00014519,2]
[384653641,1757502643133,-288.42403811,0.00014519,2]
[384653642,1757502643145,-480.0,0.0001452,2]
[384653643,1757502643156,-480.0,0.0001452,2]
[384653644,1757502643166,-480.0,0.0001452,2]
[384653645,1757502643178,-595.44,0.0001452,2]
[384653646,1757502643189,-249.22,0.0001452,2]
[384653647,1757502643200,-489.54,0.0001452,2]
[384653648,1757502643212,-1131.9,0.0001452,2]
[384653649,1757502643223,-522.92,0.0001452,2]
[384653650,1757502643234,-480.0,0.0001452,2]
[384653651,1757502643245,-2389.25,0.0001452,2]
[384653652,1757502643255,-530.89,0.0001452,2]
[384653653,1757502643266,-480.0,0.0001452,2]
[384653654,1757502643276,-433.28034999,0.0001452,2]
[384653655,1757502643286,-480.0,0.0001452,2]
[384653656,1757502643297,-480.0,0.0001452,2]
[384653657,1757502643307,-603.62,0.0001452,2]
[384653658,1757502643318,-304.81,0.0001452,2]
[384653659,1757502643328,-556.34,0.0001452,2]
[384653660,1757502643339,-880.83,0.0001452,2]
[384653661,1757502643350,-480.0,0.0001452,2]
[384653662,1757502643361,-571.66,0.0001452,2]
[384653663,1757502643376,-217.67150996,0.00014613,2]
[384653664,1757502643387,-203.30414021,0.00014613,2]
[384653665,1757502643398,-846.88337432,0.00014613,2]
[384653666,1757502643409,-160.0,0.00014613,2]
[384653667,1757502643419,-530.87637315,0.00014613,2]
[384653668,1757502643430,-160.0,0.00014613,2]
[384653669,1757502643441,-233.08191698,0.00014613,2]
[384653670,1757502643451,-500.0,0.00014641,2]
[384653671,1757502643462,-500.0,0.00014641,2]
[384653672,1757502643474,-540.73,0.00014793,2]
[384653673,1757502643484,-693.58,0.00014793,2]
[384653674,1757502643495,-517.47,0.00014793,2]
[384653677,1757502643505,-480.0,0.00014793,2]
[384653679,1757502643515,-480.0,0.00014793,2]
[384653681,1757502643526,-541.87,0.00014793,2]
[384653682,1757502643536,-480.0,0.00014793,2]
[384653683,1757502643546,-480.0,0.00014794,2]
[384653684,1757502643557,-480.0,0.00014794,2]
[384653685,1757502643567,-480.0,0.00014794,2]
[384653686,1757502643578,-595.44,0.00014794,2]
[384653687,1757502643588,-489.54,0.00014794,2]
[384653688,1757502643599,-1131.9,0.00014794,2]
[384653689,1757502643610,-522.92,0.00014794,2]
[384653691,1757502643621,-480.0,0.00014794,2]
[384653692,1757502643631,-530.89,0.00014794,2]
[384653694,1757502643642,-2389.25,0.00014794,2]
[384653696,1757502643652,-480.0,0.00014794,2]
[384653698,1757502643663,-480.0,0.00014794,2]
[384653699,1757502643673,-480.0,0.00014794,2]
[384653700,1757502643684,-603.62,0.00014794,2]
[384653701,1757502643695,-556.34,0.00014794,2]
[384653702,1757502643706,-880.83,0.00014794,2]
[384653703,1757502643717,-480.0,0.00014794,2]
[384653704,1757502643727,-571.66,0.00014794,2]
[384653705,1757502643738,-500.0,0.0001484,2]
[384653706,1757502643749,-500.0,0.00014841,2]
[384653707,1757502643759,-1338.15416108,0.000149,2]
[384653708,1757502643770,-1000.0,0.00014972,2]
[384653709,1757502643781,-550.61096996,0.00014972,2]
[384653710,1757502643791,-501.7068371,0.00014972,2]
[384653711,1757502643800,-1001.12543367,0.00014972,2]
[384653712,1757502643810,-193.55066648,0.00014972,2]
[384653713,1757502643819,-160.0,0.00015,2]
[384653714,1757502643828,-550.24081644,0.00015018,2]
[384653715,1757502643837,-1000.0,0.00015018,2]
[384653716,1757502643847,-1000.0,0.00015018,2]
[384653717,1757502643856,-1000.0,0.00015018,2]
[384653718,1757502643866,-1000.0,0.00015018,2]
[384653719,1757502643876,-152.26315583,0.00015018,2]
[384653720,1757502644027,-1000.0,0.00015018,2]
[384653721,1757502644037,-155.0,0.00015067,2]
[384653722,1757502644046,-540.73,0.00015067,2]
[384653723,1757502644055,-693.58,0.00015067,2]
[384653724,1757502644064,-209.91702314,0.00015067,2]
[384653725,1757502644074,-480.0,0.00015067,2]
[384653726,1757502644083,-500.0,0.00015067,2]
[384653727,1757502644093,-480.0,0.00015067,2]
[384653728,1757502644102,-480.0,0.00015068,2]
[384653729,1757502644111,-480.0,0.00015068,2]
[384653730,1757502644120,-480.0,0.00015068,2]
[384653731,1757502644130,-595.44,0.00015068,2]
[384653732,1757502644139,-489.54,0.00015068,2]
[384653733,1757502644148,-1131.9,0.00015068,2]
[384653734,1757502644157,-522.92,0.00015068,2]
[384653735,1757502644166,-480.0,0.00015068,2]
[384653736,1757502644175,-530.89,0.00015068,2]
[384653737,1757502644185,-2389.25,0.00015068,2]
[384653738,1757502644194,-480.0,0.00015068,2]
[384653739,1757502644203,-480.0,0.00015068,2]
[384653740,1757502644212,-480.0,0.00015068,2]
[384653741,1757502644222,-603.62,0.00015068,2]
[384653742,1757502644231,-556.34,0.00015068,2]
[384653743,1757502644240,-880.83,0.00015068,2]
[384653744,1757502644250,-480.0,0.00015068,2]
[384653745,1757502644260,-151.0,0.00015068,2]
[384653746,1757502644270,-571.66,0.00015068,2]
[384653747,1757502644279,-392.95144,0.00015068,2]
[384653748,1757502644288,-500.0,0.00015068,2]
[384653749,1757502644297,-500.0,0.00015096,2]
[384653750,1757502644307,-500.0,0.00015096,2]
[384653751,1757502644316,-500.91413569,0.00015187,2]
[384653752,1757502644325,-500.0,0.00015187,2]
[384653753,1757502644334,-500.0,0.00015187,2]
[384653754,1757502644343,-1000.0,0.00015189,2]
[384653755,1757502644352,-540.73,0.00015341,2]
[384653756,1757502644362,-693.58,0.00015341,2]
[384653757,1757502644375,-386.66,0.00015341,2]
[384653758,1757502644384,-480.0,0.00015341,2]
[384653759,1757502644394,-480.0,0.00015342,2]
[384653760,1757502644403,-155.149743,0.00015342,2]
[384653761,1757502644414,-152.002336,0.00015342,2]
[384653763,1757502644423,-151.0,0.00015342,2]
[384653764,1757502644432,-480.0,0.00015342,2]
[384653765,1757502644442,-480.0,0.00015342,2]
[384653766,1757502644456,-595.44,0.00015342,2]
[384653767,1757502644465,-489.54,0.00015342,2]
[384653768,1757502644474,-1131.9,0.00015342,2]
[384653769,1757502644483,-522.92,0.00015342,2]
[384653770,1757502644492,-480.0,0.00015342,2]
[384653771,1757502644501,-530.89,0.00015342,2]
[384653772,1757502644511,-2389.25,0.00015342,2]
[384653773,1757502644520,-480.0,0.00015342,2]
[384653774,1757502644529,-480.0,0.00015342,2]
[384653775,1757502644538,-480.0,0.00015342,2]
[384653776,1757502644547,-603.62,0.00015342,2]
[384653777,1757502644557,-556.34,0.00015342,2]
[384653778,1757502644566,-880.83,0.00015342,2]
[384653779,1757502644575,-480.0,0.00015342,2]
[384653780,1757502644584,-571.66,0.00015342,2]
[384653781,1757502644594,-720.0,0.00015368,2]
[384653782,1757502644603,-224.941478,0.00015368,2]
[384653783,1757502644612,-151.0,0.00015368,2]
[384653784,1757502644622,-9964.58445629,0.00015371,2]
[384653785,1757502644631,-500.0,0.00015371,2]
[384653786,1757502644640,-151.0,0.00015371,2]
[384653787,1757502644649,-151.0,0.00015371,2]
[384653788,1757502644658,-250.0,0.00015371,2]
[384653789,1757502644667,-151.0,0.00015371,2]
[384653790,1757502644677,-250.0,0.00015371,2]
[384653791,1757502644686,-151.0,0.00015371,2]
[384653792,1757502644695,-288.6894965,0.00015371,2]
[384653793,1757502644704,-151.0,0.00015371,2]
[384653794,1757502644714,-291.75690557,0.00015371,2]
[384653795,1757502644724,-2030.29667201,0.00015371,2]
[384653796,1757502644733,-151.0,0.00015371,2]
[384653797,1757502644742,-151.0,0.00015371,2]
[384653798,1757502644751,-500.0,0.00015387,2]
[384653799,1757502644760,-1000.0,0.00015388,2]
[384653800,1757502644769,-166.56990996,0.00015397,2]
[384653801,1757502644778,-7754.52137076,0.00015516,2]
[384653802,1757502644788,-1500.0,0.0001552,2]
[384653803,1757502644797,-1003.37354393,0.00015566,2]
[384653804,1757502644806,-1500.0,0.00015566,2]
[384653805,1757502644815,-1500.0,0.00015566,2]
[384653806,1757502644824,-1500.0,0.00015566,2]
[384653807,1757502644834,-1500.0,0.00015566,2]
[384653808,1757502644843,-228.11066947,0.00015594,7]
[384653809,1757502644853,-158.426595,0.00015606,2]
[384653810,1757502644862,-153.604784,0.00015606,2]
[384653811,1757502644871,-177.351558,0.00015606,2]
[384653812,1757502644881,-151.0,0.00015606,2]
[384653813,1757502644890,-151.0,0.00015607,2]
[384653814,1757502644900,-540.73,0.00015615,2]
[384653815,1757502644909,-693.58,0.00015615,2]
[384653816,1757502644918,-500.0,0.00015615,2]
[384653817,1757502644928,-383.84,0.00015615,2]
[384653818,1757502644937,-480.0,0.00015616,2]
[384653819,1757502644947,-480.0,0.00015616,2]
[384653820,1757502644956,-480.0,0.00015616,2]
[384653821,1757502644966,-595.44,0.00015616,2]
[384653822,1757502644975,-489.54,0.00015616,2]
[384653823,1757502644985,-1131.9,0.00015616,2]
[384653824,1757502644996,-522.92,0.00015616,2]
[384653825,1757502645006,-480.0,0.00015616,2]
[384653826,1757502645016,-530.89,0.00015616,2]
[384653827,1757502645026,-2389.25,0.00015616,2]
[384653828,1757502645035,-480.0,0.00015616,2]
[384653829,1757502645046,-480.0,0.00015616,2]
[384653830,1757502645056,-480.0,0.00015616,2]
[384653831,1757502645067,-603.62,0.00015616,2]
[384653832,1757502645076,-556.34,0.00015616,2]
[384653833,1757502645087,-880.83,0.00015616,2]
[384653834,1757502645098,-480.0,0.00015616,2]
[384653835,1757502645108,-571.66,0.00015616,2]
[384653836,1757502645117,-1000.0,0.00015644,2]
[384653837,1757502645126,-368.50008519,0.00015644,2]
[384653838,1757502645136,-151.0,0.00015735,2]
[384653839,1757502645145,-151.0,0.00015735,2]
[384653840,1757502645156,-1000.0,0.00015735,2]
[384653841,1757502645165,-1175.14914968,0.00015737,2]
[384653842,1757502645174,-913.52860201,0.00015738,2]
[384653843,1757502645183,-540.73,0.00015889,2]
[384653844,1757502645192,-693.58,0.00015889,2]
[384653845,1757502645202,-480.0,0.0001589,2]
[384653846,1757502645211,-480.0,0.0001589,2]
[384653847,1757502645220,-480.0,0.0001589,2]
[384653848,1757502645229,-595.44,0.0001589,2]
[384653849,1757502645238,-151.0,0.0001589,2]
[384653850,1757502645248,-286.050647,0.0001589,2]
[384653851,1757502645257,-489.54,0.0001589,2]
[384653852,1757502645266,-1131.9,0.0001589,2]
[384653853,1757502645275,-500.0,0.0001589,2]
[384653854,1757502645285,-522.92,0.0001589,2]
[384653855,1757502645295,-480.0,0.0001589,2]
[384653856,1757502645305,-530.89,0.0001589,2]
[384653857,1757502645314,-2389.25,0.0001589,2]
[384653858,1757502645325,-480.0,0.0001589,2]
[384653859,1757502645334,-480.0,0.0001589,2]
[384653860,1757502645343,-206.4,0.0001589,2]
[384653861,1757502645352,-603.62,0.0001589,2]
[384653862,1757502645361,-556.34,0.0001589,2]
[384653863,1757502645375,-880.83,0.0001589,2]
[384653864,1757502645384,-480.0,0.0001589,2]
[384653865,1757502645393,-151.0,0.0001589,2]
[384653866,1757502645402,-1500.0,0.00015936,2]
[384653867,1757502645414,-203.54481631,0.00015999,2]
[384653868,1757502645423,-3000.0,0.00016,2]
[384653869,1757502645433,-3000.0,0.0001601,2]
[384653870,1757502645443,-3000.0,0.0001602,2]
[384653871,1757502645454,-3000.0,0.0001603,2]
[384653872,1757502645463,-3000.0,0.0001604,2]
[384653873,1757502645474,-151.0,0.0001604,2]
[384653874,1757502645484,-151.0,0.0001604,2]
[384653875,1757502645494,-3000.0,0.0001605,2]
[384653876,1757502645502,-151.0,0.0001605,2]
[384653877,1757502645511,-3000.0,0.0001606,2]
[384653878,1757502645520,-2000.0,0.00016068,2]
[384653879,1757502645530,-4669.111672,0.0001607,2]
[384653880,1757502645539,-2000.0,0.00016114,2]
[384653881,1757502645558,-505.57771055,0.00016114,2]
[384653882,1757502645568,-2000.0,0.00016114,2]
[384653883,1757502645577,-540.73,0.00016163,2]
[384653884,1757502645587,-693.58,0.00016163,2]
[384653885,1757502645596,-312.0979798,0.00016164,2]
[384653886,1757502645605,-199.015991,0.00016164,2]
[384653887,1757502645614,-480.0,0.00016164,2]
[384653888,1757502645623,-480.0,0.00016164,2]
[384653889,1757502645633,-595.44,0.00016164,2]
[384653890,1757502645642,-489.54,0.00016164,2]
[384653891,1757502645651,-1131.9,0.00016164,2]
[384653892,1757502645660,-522.92,0.00016164,2]
[384653893,1757502645669,-480.0,0.00016164,2]
[384653894,1757502645678,-530.89,0.00016164,2]
[384653895,1757502645689,-2389.25,0.00016164,2]
[384653896,1757502645698,-480.0,0.00016164,2]
[384653897,1757502645707,-480.0,0.00016164,2]
[384653898,1757502645717,-603.62,0.00016164,2]
[384653899,1757502645726,-556.34,0.00016164,2]
[384653900,1757502645735,-880.83,0.00016164,2]
[384653901,1757502645745,-480.0,0.00016164,2]
[384653902,1757502645754,-1000.71791323,0.00016164,2]
[384653903,1757502645763,-1500.0,0.00016192,2]
[384653904,1757502645772,-153.021712,0.00016265,2]
[384653905,1757502645781,-151.0,0.00016265,2]
[384653906,1757502645791,-171.174895,0.00016265,2]
[384653907,1757502645801,-3000.0,0.000164,2]
[384653908,1757502645813,-3000.0,0.000164,2]
[384653909,1757502645823,-3000.0,0.000164,2]
[384653910,1757502645832,-155.0,0.00016436,2]
[384653911,1757502645841,-540.73,0.00016437,2]
[384653912,1757502645851,-693.58,0.00016437,2]
[384653914,1757502645860,-151.0,0.00016438,2]
[384653915,1757502645868,-342.7257201,0.00016438,2]
[384653916,1757502645877,-480.0,0.00016438,2]
[384653917,1757502645887,-475.6,0.00016438,2]
[384653918,1757502645896,-595.44,0.00016438,2]
[384653919,1757502645905,-489.54,0.00016438,2]
[384653920,1757502645914,-151.0,0.00016438,2]
[384653922,1757502645923,-1131.9,0.00016438,2]
[384653923,1757502645932,-522.92,0.00016438,2]
[384653924,1757502645941,-480.0,0.00016438,2]
[384653925,1757502645950,-530.89,0.00016438,2]
[384653926,1757502645959,-2389.25,0.00016438,2]
[384653927,1757502645969,-480.0,0.00016438,2]
[384653928,1757502645978,-480.0,0.00016438,2]
[384653929,1757502645987,-603.62,0.00016438,2]
[384653930,1757502645997,-556.34,0.00016438,2]
[384653931,1757502646006,-880.83,0.00016438,2]
[384653932,1757502646015,-480.0,0.00016438,2]
[384653933,1757502646024,-2000.0,0.00016484,2]
[384653935,1757502646034,-954.32360974,0.00016616,2]
[384653937,1757502646043,-166.56990996,0.00016649,2]
[384653939,1757502646052,-2500.0,0.00016662,2]
[384653940,1757502646061,-2500.0,0.00016662,2]
[384653941,1757502646072,-540.73,0.00016711,2]
[384653942,1757502646081,-693.58,0.00016711,2]
[384653943,1757502646091,-480.0,0.00016712,2]
[384653944,1757502646101,-595.44,0.00016712,2]
[384653945,1757502646110,-151.0,0.00016712,2]
[384653947,1757502646119,-489.54,0.00016712,2]
[384653948,1757502646128,-1131.9,0.00016712,2]
[384653949,1757502646137,-522.92,0.00016712,2]
[384653950,1757502646147,-480.0,0.00016712,2]
[384653951,1757502646156,-530.89,0.00016712,2]
[384653952,1757502646165,-2389.25,0.00016712,2]
[384653953,1757502646174,-480.0,0.00016712,2]
[384653954,1757502646183,-480.0,0.00016712,2]
[384653955,1757502646193,-603.62,0.00016712,2]
[384653956,1757502646203,-556.34,0.00016712,2]
[384653957,1757502646212,-880.83,0.00016712,2]
[384653958,1757502646221,-480.0,0.00016712,2]
[384653959,1757502646230,-151.0,0.00016712,2]
[384653960,1757502646239,-2000.0,0.0001674,2]
[384653961,1757502646248,-359.0,0.00016849,2]
[384653962,1757502646258,-864.0,0.00016905,2]
[384653963,1757502646267,-540.73,0.00016985,2]
[384653964,1757502646276,-693.58,0.00016985,2]